bitfinex-derivatives/quotes_ETHF0:USTF0_20250327
["timestamp","ask_amount","ask_price","bid_price","bid_amount"]
[1743110317123,3.68309,2006.6,2006.5,3.1035441]
[1743110317629,3.68309,2006.6,2006.5,6.3113441]
[1743110318628,3.68309,2006.6,2006.5,3.1035441]
[1743110318831,3.68309,2006.6,2006.5,6.3113441]
[1743110319428,3.68309,2006.6,2006.5,3.1035441]
[1743110319628,3.68309,2006.6,2006.5,6.3113441]
[1743110323238,3.68309,2006.6,2006.5,3.1035441]
[1743110323434,3.68309,2006.6,2006.5,6.3113441]
[1743110323739,3.68309,2006.6,2006.5,4.8619441]
[1743110324729,3.68309,2006.6,2006.5,3.8650141]
[1743110326733,3.68309,2006.6,2006.5,4.8619441]
[1743110326935,3.68309,2006.6,2006.5,3.8650141]
[1743110327535,3.68309,2006.6,2006.5,0.6572141]
[1743110330030,3.68309,2006.6,2006.5,2.0878141]
[1743110332537,3.68309,2006.6,2006.5,3.0847441]
[1743110334043,3.68309,2006.6,2006.5,3.7743441]
[1743110334244,2.99429,2006.6,2006.5,3.7743441]
[1743110334444,2.31559,2006.6,2006.5,3.7743441]
[1743110335649,2.31559,2006.6,2006.5,2.7774141]
[1743110336749,2.31559,2006.6,2006.5,3.7743441]
[1743110339344,2.31559,2006.6,2006.5,6.9821441]
[1743110340647,2.31559,2006.6,2006.5,5.9852141]
[1743110341550,2.31559,2006.6,2006.5,2.7774141]
[1743110341748,2.31559,2006.6,2006.5,6.9821441]
[1743110342143,2.31559,2006.6,2006.5,5.9852141]
[1743110343344,2.31559,2006.6,2006.5,2.7774141]
[1743110343750,2.31559,2006.6,2006.5,6.9821441]
[1743110346052,2.31559,2006.6,2006.5,2.7774141]
[1743110346245,2.31559,2006.6,2006.5,5.2956141]
[1743110349551,2.31559,2006.6,2006.5,6.2925441]
[1743110350058,2.31559,2006.6,2006.5,3.0847441]
[1743110350249,2.31559,2006.6,2006.5,6.2925441]
[1743110350450,0.99689,2006.6,2006.5,6.2925441]
[1743110350645,2.40337,2006.7,2006.6,0.99689]
[1743110350954,2.40337,2006.7,2006.6,3.06129]
[1743110351349,2.40337,2006.7,2006.6,3.7185041]
[1743110352255,0.00747608,2006.8,2006.7,0.99684]
[1743110352459,1.00426608,2006.8,2006.7,3.06374]
[1743110353157,1.00426608,2006.8,2006.7,3.7209541]
[1743110357152,2.38316608,2006.8,2006.7,3.7209541]
[1743110357347,2.38316608,2006.8,2006.7,2.0671141]
[1743110357553,2.38316608,2006.8,2006.7,0.6572141]
[1743110357753,2.38316608,2006.8,2006.7,1.9838141]
[1743110357958,2.38316608,2006.8,2006.7,2.9806541]
[1743110358260,2.38316608,2006.8,2006.7,1.9838141]
[1743110358649,2.38316608,2006.8,2006.7,2.9806541]
[1743110358853,2.38316608,2006.8,2006.7,1.9838141]
[1743110359453,2.38316608,2006.8,2006.7,0.6572141]
[1743110360771,2.38316608,2006.8,2006.7,1.9653141]
[1743110361453,2.38316608,2006.8,2006.7,2.9621541]
[1743110362551,2.38316608,2006.8,2006.7,1.9653141]
[1743110362951,2.38316608,2006.8,2006.7,2.9621541]
[1743110363460,2.38316608,2006.8,2006.7,1.9653141]
[1743110375769,2.38316608,2006.8,2006.7,2.9621541]
[1743110378668,2.38316608,2006.8,2006.7,1.9653141]
[1743110379470,0.00747608,2006.8,2006.7,2.9621541]
[1743110380162,1.00426608,2006.8,2006.7,2.9621541]
[1743110387783,1.00426608,2006.8,2006.7,6.1699541]
[1743110388684,2.38086608,2006.8,2006.7,6.1699541]
[1743110389886,1.38407608,2006.8,2006.7,6.1699541]
[1743110390685,0.00747608,2006.8,2006.7,6.1699541]
[1743110394094,0.99654,2007.4,2006.8,2.49197]
[1743110394292,0.99654,2007.4,2007.3,4.20429]
[1743110394802,0.99654,2007.4,2007.3,4.8615041]
[1743110395290,0.99654,2007.4,2007.3,6.2531041]
[1743110395791,2.40269,2007.5,2007.4,0.99649]
[1743110395991,2.40269,2007.5,2007.4,2.44019]
[1743110396392,1.4062,2007.5,2007.4,2.44019]
[1743110396897,1.4062,2007.5,2007.4,3.0974041]
[1743110397102,2.40264,2007.5,2007.4,3.0974041]
[1743110397402,2.40264,2007.5,2007.4,2.1009141]
[1743110397794,2.40264,2007.5,2007.4,3.0974041]
[1743110398690,2.40264,2007.5,2007.4,2.1009141]
[1743110398891,2.40264,2007.5,2007.4,3.0974041]
[1743110400395,2.40264,2007.5,2007.4,2.1009141]
[1743110400997,2.40264,2007.5,2007.4,3.0974041]
[1743110401301,2.40264,2007.5,2007.4,2.1009141]
[1743110403605,2.40264,2007.5,2007.4,1.4437]
[1743110410097,2.40264,2007.5,2007.4,2.44019]
[1743110410414,2.40264,2007.5,2007.4,3.09988662]
[1743110414599,2.40264,2007.5,2007.4,6.30768662]
[1743110418710,2.40264,2007.5,2007.4,3.86749662]
[1743110418915,2.40264,2007.5,2007.4,0.65969662]
[1743110419112,0.99654,2007.3,2007.2,1.3163]
[1743110419704,2.32454,2007.3,2007.2,1.3163]
[1743110420207,2.32454,2007.3,2007.2,1.97655439]
[1743110427019,0.99654,2007.3,2007.2,1.97655439]
[1743110427217,2.32294,2007.3,2007.2,1.97655439]
[1743110427421,2.49593024,2007.6,2007.3,0.99651]
[1743110427720,2.32284,2007.5,2007.4,3.861]
[1743110427919,2.32284,2007.5,2007.4,5.95905439]
[1743110428315,2.32284,2007.5,2007.4,6.95554439]
[1743110428623,2.32284,2007.5,2007.4,5.95905439]
[1743110429710,2.32284,2007.5,2007.4,6.95554439]
[1743110430121,2.32284,2007.5,2007.4,5.95905439]
[1743110432024,2.32284,2007.5,2007.4,6.95554439]
[1743110434125,2.32284,2007.5,2007.4,3.74774439]
[1743110434321,2.32284,2007.5,2007.4,6.95554439]
[1743110434626,2.32284,2007.5,2007.4,5.95905439]
[1743110438226,2.32284,2007.5,2007.4,2.75125439]
[1743110438525,2.32284,2007.5,2007.4,5.95905439]
[1743110438726,2.32284,2007.5,2007.4,6.95554439]
[1743110439427,2.32284,2007.5,2007.4,5.95905439]
[1743110443621,2.32284,2007.5,2007.4,6.95554439]
[1743110446234,2.32284,2007.5,2007.4,25.65554439]
[1743110447235,0.00494024,2007.6,2007.5,0.99644]
[1743110447437,1.35154024,2007.6,2007.5,2.30994]
[1743110447828,2.34797024,2007.6,2007.5,1.3135]
[1743110448134,2.34797024,2007.6,2007.5,1.97375439]
[1743110449627,2.34797024,2007.6,2007.5,2.97019439]
[1743110449827,2.34797024,2007.6,2007.5,1.97375439]
[1743110450631,2.34797024,2007.6,2007.5,2.97019439]
[1743110451034,1.00137024,2007.6,2007.5,2.97019439]
[1743110452830,0.00494024,2007.6,2007.5,2.97019439]
[1743110453230,0.99628,2007.9,2007.8,0.99624]
[1743110453426,0.99628,2007.9,2007.8,4.86429439]
[1743110454440,2.34488,2007.9,2007.8,6.18639439]
[1743110455733,2.34484,2007.9,2007.8,6.18639439]
[1743110455941,1.3486,2007.9,2007.8,6.18639439]
[1743110456143,2.34484,2007.9,2007.8,6.18639439]
[1743110457239,0.99623,2008.0,2007.9,0.99619]
[1743110457447,2.44429,2008.1,2008.0,0.99619]
[1743110457647,2.44429,2008.1,2008.0,2.43929]
[1743110457946,2.44429,2008.1,2008.0,3.09954439]
[1743110458838,2.44424,2008.1,2008.0,3.09954439]
[1743110459234,1.4481,2008.1,2008.0,3.76114439]
[1743110459644,2.44424,2008.1,2008.0,3.76114439]
[1743110461648,1.4481,2008.1,2008.0,3.76114439]
[1743110463850,0.99613,2008.2,2008.1,0.99614]
[1743110464047,0.99613,2008.2,2008.1,5.56414]
[1743110464546,0.99613,2008.2,2008.1,6.22439439]
[1743110465244,2.30543,2008.2,2008.1,6.22439439]
[1743110466647,2.30539,2008.2,2008.1,6.22439439]
[1743110468437,1.3093,2008.2,2008.1,6.22439439]
[1743110468840,2.30539,2008.2,2008.1,6.22439439]
[1743110469150,1.3093,2008.2,2008.1,6.22439439]
[1743110469646,1.66714,2008.4,2008.3,0.99604]
[1743110469841,0.99604,2008.4,2008.3,0.99604]
[1743110470353,0.99604,2008.4,2008.3,1.67814]
[1743110470949,1.4412,2008.4,2008.3,3.06914]
[1743110471345,0.99598,2008.5,2008.4,0.99599]
[1743110471545,2.43718,2008.5,2008.4,5.59479]
[1743110471749,1.4412,2008.5,2008.4,6.25345277]
[1743110472253,2.43714,2008.5,2008.4,6.25345277]
[1743110476454,0.9959,2008.7,2008.6,0.99584]
[1743110476654,2.3367,2008.7,2008.6,0.99584]
[1743110476854,2.3367,2008.7,2008.6,3.04974]
[1743110478859,2.3367,2008.7,2008.6,3.70809269]
[1743110484857,2.3367,2008.7,2008.6,3.04974]
[1743110485062,2.3367,2008.7,2008.6,3.70860456]
[1743110485763,2.3367,2008.7,2008.6,6.91640456]
[1743110487861,1.3408,2008.7,2008.6,6.91640456]
[1743110488066,0.99582,2008.8,2008.7,0.99584]
[1743110488262,2.35082,2008.8,2008.7,2.39944]
[1743110488670,2.35082,2008.8,2008.7,3.05830456]
[1743110488859,2.35082,2008.8,2008.7,21.75830456]
[1743110489858,2.35079,2008.8,2008.7,21.75830456]
[1743110490062,0.99579,2008.8,2008.7,21.75830456]
[1743110491973,2.42249,2008.8,2008.7,21.75830456]
[1743110494080,2.42249,2008.8,2008.7,24.96610456]
[1743110495867,2.42249,2008.8,2008.7,6.26610456]
[1743110496073,3.14259,2008.8,2008.7,6.26610456]
[1743110496475,3.14259,2008.8,2008.7,24.96610456]
[1743110498580,3.14259,2008.8,2008.7,6.26610456]
[1743110499170,3.14259,2008.8,2008.7,24.96610456]
[1743110501989,2.42249,2008.8,2008.7,24.96610456]
[1743110507191,3.11869,2008.8,2008.7,24.96610456]
[1743110507990,3.11869,2008.8,2008.7,23.97026456]
[1743110508292,3.11869,2008.8,2008.7,24.96610456]
[1743110508889,3.11869,2008.8,2008.7,6.26610456]
[1743110513999,3.11869,2008.8,2008.7,3.05830456]
[1743110514197,3.11869,2008.8,2008.7,6.26610456]
[1743110524797,3.11869,2008.8,2008.7,24.96610456]
[1743110525598,3.11869,2008.8,2008.7,23.97026456]
[1743110526000,3.11869,2008.8,2008.7,24.96610456]
[1743110526510,3.11869,2008.8,2008.7,23.97026456]
[1743110527209,3.11869,2008.8,2008.7,24.96610456]
[1743110527408,3.11869,2008.8,2008.7,23.97026456]
[1743110527709,3.11869,2008.8,2008.7,24.96610456]
[1743110528101,0.99579,2008.8,2008.7,24.96610456]
[1743110528504,2.32779,2008.8,2008.7,24.96610456]
[1743110530312,2.32779,2008.8,2008.7,6.26610456]
[1743110530811,2.32779,2008.8,2008.7,3.05830456]
[1743110531110,2.32779,2008.8,2008.7,5.27026456]
[1743110532512,2.32779,2008.8,2008.7,6.26610456]
[1743110535502,0.99579,2008.9,2008.8,0.99574]
[1743110535713,0.99579,2008.9,2008.8,2.41934]
[1743110535914,0.99579,2008.9,2008.8,3.10544]
[1743110536304,0.99579,2008.9,2008.8,3.76430456]
[1743110538821,2.37932,2009.0,2008.9,0.99574]
[1743110539010,2.37932,2009.0,2008.9,3.10404]
[1743110539415,2.37932,2009.0,2008.9,3.76290456]
[1743110540810,2.37932,2009.0,2008.9,6.97070456]
[1743110546215,0.99572,2009.0,2008.9,6.97070456]
[1743110547924,2.37087,2009.1,2009.0,0.99569]
[1743110548128,2.37087,2009.1,2009.0,2.39879]
[1743110548329,2.37087,2009.1,2009.0,3.05765456]
[1743110549625,2.37087,2009.1,2009.0,3.71145456]
[1743110552228,2.37087,2009.1,2009.0,6.91925456]
[1743110553120,2.37087,2009.1,2009.0,5.26976456]
[1743110555423,2.37087,2009.1,2009.0,6.26545456]
[1743110557838,2.37087,2009.1,2009.0,6.97005456]
[1743110561027,2.37087,2009.1,2009.0,3.76225456]
[1743110561226,2.37087,2009.1,2009.0,6.97005456]
[1743110564249,2.37087,2009.1,2009.0,3.76225456]
[1743110564649,2.37087,2009.1,2009.0,6.97005456]
[1743110570660,1.3752,2009.1,2009.0,6.97005456]
[1743110571646,2.37084,2009.1,2009.0,6.97005456]
[1743110574548,2.37084,2009.1,2009.0,3.76225456]
[1743110574760,2.37084,2009.1,2009.0,6.97005456]
[1743110575359,3.81418,2009.3,2009.0,6.97005456]
[1743110575360,0.99562,2009.2,2009.1,0.9956]
[1743110575560,2.34522,2009.2,2009.1,2.3304]
[1743110576362,2.34522,2009.2,2009.1,2.98926456]
[1743110578660,2.34522,2009.2,2009.1,6.19706456]
[1743110581563,0.99558,2009.3,2009.2,0.9956]
[1743110581864,2.37338,2009.3,2009.2,2.9869]
[1743110582063,2.37338,2009.3,2009.2,3.64576456]
[1743110583364,2.37338,2009.3,2009.2,3.6479824]
[1743110586870,2.37335,2009.3,2009.2,3.6479824]
[1743110587163,1.3778,2009.3,2009.2,3.6479824]
[1743110587861,2.37335,2009.3,2009.2,3.6479824]
[1743110589471,2.37335,2009.3,2009.2,6.8557824]
[1743110590171,2.37335,2009.3,2009.2,3.6479824]
[1743110590370,2.37335,2009.3,2009.2,6.8557824]
[1743110592364,2.37335,2009.3,2009.2,7.5719824]
[1743110592867,1.3778,2009.3,2009.2,7.5719824]
[1743110594173,2.37335,2009.3,2009.2,7.5719824]
[1743110594770,1.3778,2009.3,2009.2,7.5719824]
[1743110596570,2.37335,2009.3,2009.2,7.5719824]
[1743110602781,1.3778,2009.3,2009.2,7.5719824]
[1743110603583,2.37335,2009.3,2009.2,7.5719824]
[1743110604683,2.37335,2009.3,2009.2,6.8557824]
[1743110607782,2.37335,2009.3,2009.2,6.8557824]
[1743110608886,2.37335,2009.3,2009.2,3.6479824]
[1743110609384,2.37335,2009.3,2009.2,6.8557824]
[1743110611590,1.3778,2009.3,2009.2,6.8557824]
[1743110612590,2.37335,2009.3,2009.2,6.8557824]
[1743110612790,1.3778,2009.3,2009.2,6.8557824]
[1743110614496,2.40519,2009.5,2009.4,0.9955]
[1743110614793,0.6877,2009.5,2009.4,0.9955]
[1743110614994,0.6877,2009.5,2009.4,2.3613]
[1743110615189,0.6877,2009.5,2009.4,3.0223824]
[1743110615590,1.68315,2009.5,2009.4,3.0223824]
[1743110616391,0.6877,2009.5,2009.4,3.0223824]
[1743110617797,1.68315,2009.5,2009.4,3.0223824]
[1743110619188,1.4457,2009.6,2009.5,0.99545]
[1743110619404,2.4411,2009.6,2009.5,5.58615]
[1743110619607,1.4457,2009.6,2009.5,7.6662324]
[1743110620003,1.4457,2009.6,2009.5,8.34459403]
[1743110620595,2.4411,2009.6,2009.5,8.34459403]
[1743110620901,1.4457,2009.6,2009.5,8.34459403]
[1743110622400,1.70522,2009.8,2009.7,0.99535]
[1743110622603,1.70522,2009.8,2009.7,1.67323077]
[1743110622804,0.7099,2009.8,2009.7,1.67323077]
[1743110622996,0.7099,2009.8,2009.7,3.03411317]
[1743110623805,3.0171,2009.8,2009.7,4.46554151]
[1743110624397,3.0171,2009.8,2009.7,23.16554151]
[1743110625206,3.0171,2009.8,2009.7,4.46554151]
[1743110626205,3.0171,2009.8,2009.7,6.9958324]
[1743110626911,3.0171,2009.8,2009.7,3.7880324]
[1743110627114,3.0171,2009.8,2009.7,6.9958324]
[1743110628001,1.3119,2009.8,2009.7,6.9958324]
[1743110629604,1.3119,2009.8,2009.7,7.67237513]
[1743110630205,1.3119,2009.8,2009.7,6.9958324]
[1743110631711,1.3119,2009.8,2009.7,7.67217751]
[1743110632013,1.3119,2009.8,2009.7,6.9958324]
[1743110632914,1.3119,2009.8,2009.7,7.67208571]
[1743110633114,1.3119,2009.8,2009.7,6.9958324]
[1743110633716,1.3119,2009.8,2009.7,7.672035]
[1743110634017,1.3119,2009.8,2009.7,7.67206828]
[1743110634217,1.3119,2009.8,2009.7,6.9958324]
[1743110634418,1.3119,2009.8,2009.7,7.67204908]
[1743110634618,2.39583,2010.0,2009.9,0.99525]
[1743110635015,2.39583,2010.0,2009.9,2.3555324]
[1743110635213,3.2078,2010.6,2009.9,4.5122824]
[1743110635512,0.995,2010.5,2010.4,0.99495]
[1743110635715,0.995,2010.5,2010.4,1.65735]
[1743110635919,2.3063,2010.5,2010.4,3.80225]
[1743110636221,2.3063,2010.5,2010.4,4.4633324]
[1743110638419,0.99494,2010.7,2010.6,0.99485]
[1743110638619,0.99494,2010.7,2010.6,4.20265]
[1743110638919,0.99494,2010.7,2010.6,5.61885]
[1743110639113,3.05474,2010.7,2010.6,5.61885]
[1743110641416,2.34514,2010.7,2010.6,5.61885]
[1743110644222,3.04514,2010.7,2010.6,5.6189]
[1743110650219,0.995,2010.4,2010.3,4.20281]
[1743110650420,0.995,2010.4,2010.3,5.62691]
[1743110651727,0.995,2010.4,2010.3,4.6319]
[1743110652030,0.995,2010.4,2010.3,5.62695]
[1743110652224,1.6533,2010.4,2010.3,5.62695]
[1743110654732,1.6533,2010.4,2010.3,3.2078]
[1743110654929,1.6533,2010.4,2010.3,5.62725]
[1743110656230,1.6533,2010.4,2010.3,4.6322]
[1743110657732,1.6533,2010.4,2010.3,3.2078]
[1743110658032,0.99505,2010.3,2010.2,0.00747608]
[1743110658232,0.99505,2010.3,2010.2,1.34717608]
[1743110658233,3.02155,2010.3,2010.2,1.34717608]
[1743110658826,0.99505,2010.3,2010.2,1.34717608]
[1743110659022,0.99505,2010.3,2010.2,2.00565518]
[1743110659227,2.32925,2010.3,2010.2,1.34717608]
[1743110659940,2.32925,2010.3,2010.2,2.34227608]
[1743110660436,2.32925,2010.3,2010.2,2.00598185]
[1743110660835,1.67265,2010.3,2010.2,3.00108185]
[1743110662731,1.67265,2010.3,2010.2,2.00598185]
[1743110665141,1.67265,2010.3,2010.2,3.00108185]
[1743110665335,1.67265,2010.3,2010.2,2.00598185]
[1743110669945,2.36105,2010.3,2010.2,2.00598185]
[1743110675646,3.66755,2010.3,2010.2,2.00598185]
[1743110679654,2.30155,2010.3,2010.2,2.00598185]
[1743110684952,5.45155,2010.3,2010.2,1.85e-06]
[1743110685147,7.95155,2010.3,2010.2,1.85e-06]
[1743110685844,7.95155,2010.3,2009.9,1.3047]
[1743110685845,0.9952,2010.0,2009.9,1.3047]
[1743110686245,3.0555,2010.0,2009.9,1.3047]
[1743110687246,0.9953,2009.8,2009.7,0.00747608]
[1743110687653,2.3312,2009.8,2009.7,0.00747608]
[1743110696359,5.4822,2009.8,2009.7,0.00747608]
[1743110696565,5.4822,2009.8,2009.7,0.69787608]
[1743110696860,2.3312,2009.8,2009.7,0.69787608]
[1743110697062,2.3312,2009.8,2009.7,1.37227608]
[1743110697861,2.3312,2009.8,2009.7,2.81127608]
[1743110700470,0.9953,2009.8,2009.7,3.80662608]
[1743110700657,0.00747608,2010.2,2009.9,2.48813]
[1743110700961,0.00747608,2010.2,2010.1,0.99515]
[1743110701162,1.00257608,2010.2,2010.1,1.64868624]
[1743110701462,0.00747608,2010.2,2010.1,3.64418624]
[1743110701764,1.00257608,2010.2,2010.1,3.64418624]
[1743110701961,2.48739,2010.6,2010.1,8.30403624]
[1743110702166,0.99505,2010.4,2010.3,4.20282]
[1743110702371,0.99505,2010.4,2010.3,4.85610921]
[1743110702761,0.99498,2010.5,2010.4,0.99494]
[1743110703069,0.99495,2010.6,2010.5,0.9949]
[1743110703975,0.99495,2010.5,2010.4,1.3044]
[1743110704173,0.99495,2010.5,2010.4,2.2994]
[1743110704473,0.99495,2010.5,2010.4,2.95241259]
[1743110704974,0.99495,2010.5,2010.4,2.2994]
[1743110705172,0.99495,2010.5,2010.4,2.9773]
[1743110706470,0.99495,2010.5,2010.4,1.9823]
[1743110706771,0.99495,2010.5,2010.4,2.9773]
[1743110707378,0.99495,2010.5,2010.4,1.9823]
[1743110707672,0.99495,2010.5,2010.4,2.9773]
[1743110708073,0.99495,2010.5,2010.4,1.9823]
[1743110708474,0.99495,2010.5,2010.4,2.9773]
[1743110711166,0.99495,2010.5,2010.4,1.9823]
[1743110711568,0.99495,2010.5,2010.4,2.9773]
[1743110713475,0.99495,2010.5,2010.4,1.9823]
[1743110714378,0.99495,2010.5,2010.4,2.9773]
[1743110717077,2.38355,2010.5,2010.4,2.9773]
[1743110718379,2.38355,2010.5,2010.4,1.9823]
[1743110718571,2.38355,2010.5,2010.4,2.9773]
[1743110722577,2.38355,2010.5,2010.4,3.6582]
[1743110723378,2.38355,2010.5,2010.4,6.866]
[1743110724271,1.3886,2010.5,2010.1,3.2078]
[1743110724475,0.9951,2010.2,2010.1,3.2078]
[1743110725281,0.99525,2009.9,2009.8,50.8507]
[1743110725486,0.99525,2009.9,2009.8,51.846]
[1743110725681,0.99525,2009.9,2009.8,52.49955581]
[1743110725881,0.99525,2009.9,2009.8,51.50425581]
[1743110726077,0.99502,2010.5,2009.8,54.67970423]
[1743110726282,2.48677,2011.0,2010.6,0.9949]
[1743110726479,0.9948,2010.9,2010.8,0.99478]
[1743110726687,2.3041,2010.9,2010.8,19.69478]
[1743110727078,2.3041,2010.9,2010.8,21.74343581]
[1743110727480,2.3041,2010.9,2010.8,3.04343581]
[1743110728091,2.3041,2010.9,2010.8,21.74343581]
[1743110729589,2.3041,2010.9,2010.8,22.42001538]
[1743110730982,2.3041,2010.9,2010.8,21.74343581]
[1743110731791,2.3041,2010.9,2010.8,1.64833581]
[1743110732290,2.3041,2010.9,2010.8,20.34833581]
[1743110732590,2.3041,2010.9,2010.8,21.69943581]
[1743110735893,2.3041,2010.9,2010.8,24.90723581]
[1743110738696,3.2078,2012.0,2010.9,4.97379]
[1743110738988,0.99441,2011.6,2011.5,3.2078]
[1743110739494,0.99441,2011.6,2011.5,21.9078]
[1743110739794,0.99441,2011.6,2011.5,4.5299]
[1743110739997,2.39351,2011.6,2011.5,4.5299]
[1743110740189,2.39351,2011.6,2011.5,5.52436]
[1743110740495,2.39351,2011.6,2011.5,4.5299]
[1743110740885,2.39351,2011.6,2011.5,3.2078]
[1743110741696,3.06091,2011.6,2011.5,3.2078]
[1743110744997,3.06091,2011.6,2011.5,4.5572]
[1743110749097,3.2078,2012.0,2011.9,0.99426]
[1743110749300,0.99426,2012.0,2011.9,4.20201]
[1743110749497,2.33916,2012.0,2011.9,4.20201]
[1743110749693,2.33916,2012.0,2011.9,5.59011]
[1743110750301,1.3449,2012.0,2011.9,5.59011]
[1743110750502,2.41168,2012.3,2012.2,0.99411]
[1743110751001,2.41168,2012.3,2012.2,5.59001]
[1743110751203,0.7236,2012.3,2012.2,5.59001]
[1743110751798,2.0685,2012.3,2012.2,5.59001]
[1743110753005,3.06256,2012.3,2012.2,5.59001]
[1743110753199,2.0685,2012.3,2012.2,5.59001]
[1743110754202,3.06256,2012.3,2012.2,5.59001]
[1743110756306,2.0685,2012.3,2012.2,5.59001]
[1743110756503,3.06256,2012.3,2012.2,5.59001]
[1743110758506,3.06256,2012.3,2012.2,2.38221]
[1743110758702,0.99391,2012.7,2012.6,0.99388]
[1743110758909,1.3848,2012.6,2012.5,3.2078]
[1743110759216,2.37878,2012.6,2012.5,3.2078]
[1743110759411,2.37878,2012.6,2012.5,4.6036]
[1743110759714,2.37878,2012.6,2012.5,5.59756]
[1743110768118,2.37878,2012.6,2012.5,2.38976]
[1743110768520,2.37878,2012.6,2012.5,5.59756]
[1743110770218,2.37878,2012.6,2012.5,2.38976]
[1743110770421,2.37878,2012.6,2012.5,5.59756]
[1743110776425,2.37878,2012.6,2012.5,6.24948373]
[1743110777011,2.37878,2012.6,2012.5,5.59756]
[1743110778125,2.37878,2012.6,2012.5,6.24951519]
[1743110778930,2.37878,2012.6,2012.5,3.04171519]
[1743110779223,2.37878,2012.6,2012.5,6.24951519]
[1743110782518,2.37878,2012.6,2012.5,3.04171519]
[1743110782719,2.37878,2012.6,2012.5,6.24951519]
[1743110784427,2.37878,2012.6,2012.5,6.92532163]
[1743110785227,0.99391,2012.7,2012.6,0.99391]
[1743110785433,2.37511,2012.7,2012.6,2.29981]
[1743110785726,2.37511,2012.7,2012.6,2.95176519]
[1743110786120,2.37511,2012.7,2012.6,0.65195519]
[1743110786316,0.99396,2012.5,2012.4,0.00745731]
[1743110786721,2.39716,2012.5,2012.4,0.00745731]
[1743110788720,2.47883254,2012.5,2012.4,0.00745731]
[1743110788926,2.47883255,2012.5,2012.4,0.00745731]
[1743110789425,3.19593309,2012.5,2012.4,0.00745731]
[1743110790330,3.19593428,2012.5,2012.4,0.00745731]
[1743110791832,3.89663428,2012.5,2012.4,0.00745731]
[1743110792129,3.81496,2012.5,2012.4,0.00745731]
[1743110794831,3.81496,2012.5,2012.4,1.38005731]
[1743110796839,3.81496,2012.5,2012.4,2.37406731]
[1743110796840,0.99396,2012.5,2012.4,2.37406731]
[1743110797031,0.99396,2012.5,2012.4,3.04006731]
[1743110797337,0.99396,2012.5,2012.4,2.04605731]
[1743110797732,0.99396,2012.5,2012.4,3.04006731]
[1743110803040,0.99396,2012.5,2012.4,2.04605731]
[1743110803241,0.99396,2012.5,2012.4,3.04006731]
[1743110803445,0.99396,2012.5,2012.4,2.04605731]
[1743110803643,2.35106,2012.5,2012.4,2.04605731]
[1743110803842,2.35106,2012.5,2012.4,3.04006731]
[1743110805040,0.99396,2012.5,2012.4,3.04001731]
[1743110805542,2.37636,2012.6,2012.5,0.99396]
[1743110805743,2.37636,2012.6,2012.5,2.41556]
[1743110806134,2.37631,2012.6,2012.5,2.41556]
[1743110806943,0.99391,2012.6,2012.5,2.41556]
[1743110808144,2.31811,2012.6,2012.5,2.41556]
[1743110808342,0.99391,2012.6,2012.5,2.41556]
[1743110808542,0.99388,2012.7,2012.6,0.99391]
[1743110808745,2.31806,2012.8,2012.7,0.99382]
[1743110816048,0.99381,2012.9,2012.8,0.99377]
[1743110816240,2.34081,2012.9,2012.8,0.99377]
[1743110817549,1.347,2012.9,2012.8,0.99377]
[1743110817748,6.9457,2013.1,2013.0,0.99372]
[1743110818045,8.2927,2013.1,2013.0,0.99372]
[1743110819048,0.99372,2013.0,2012.9,1.65644]
[1743110819247,2.34072,2013.0,2012.9,1.65644]
[1743110819854,0.99372,2013.0,2012.9,1.65644]
[1743110821353,0.6764,2013.2,2012.9,0.6627]
[1743110821549,2.31617,2013.2,2013.1,0.99367]
[1743110823152,0.99367,2013.2,2013.1,0.99367]
[1743110823459,4.5288,2013.3,2013.2,0.99362]
[1743110824250,4.20137,2013.3,2013.2,0.99362]
[1743110824445,4.5288,2013.3,2013.2,0.99362]
[1743110824645,5.52237,2013.3,2013.2,0.99362]
[1743110825056,4.5288,2013.3,2013.2,0.99362]
[1743110825858,5.52237,2013.3,2013.2,0.99362]
[1743110826160,5.52237,2013.3,2013.2,1.67242]
[1743110826161,1.321,2013.3,2013.2,1.67242]
[1743110826963,2.31457,2013.3,2013.2,1.67242]
[1743110827155,0.99349,2013.5,2013.4,0.99346]
[1743110827752,2.31949,2013.5,2013.4,2.36586]
[1743110827957,1.326,2013.5,2013.4,2.36586]
[1743110828361,1.67663,2013.6,2013.5,0.99347]
[1743110828662,2.0137,2013.6,2013.5,2.99897]
[1743110829050,3.00712,2013.6,2013.5,2.99897]
[1743110829258,2.0137,2013.6,2013.5,2.99897]
[1743110829460,1.3305,2013.6,2013.5,2.99897]
[1743110829661,4.20118,2013.7,2013.6,0.99342]
[1743110829863,0.99338,2013.7,2013.6,2.32422]
[1743110831065,2.32388,2013.7,2013.6,2.32422]
[1743110840461,2.32388,2013.7,2013.6,3.01942]
[1743110843371,2.32388,2013.7,2013.6,2.32422]
[1743110843973,0.99338,2013.7,2013.6,2.32422]
[1743110844159,2.43998,2013.7,2013.6,2.99222]
[1743110845170,0.99338,2013.7,2013.6,2.99222]
[1743110845868,2.43998,2013.7,2013.6,2.99222]
[1743110848176,2.43998,2013.7,2013.6,3.63952414]
[1743110848369,2.43998,2013.7,2013.6,2.99222]
[1743110849674,2.43998,2013.7,2013.6,3.63970765]
[1743110858080,2.43998,2013.7,2013.6,2.97170765]
[1743110860384,2.43998,2013.7,2013.6,1.97828765]
[1743110861183,2.43998,2013.7,2013.6,2.97170765]
[1743110861383,2.43998,2013.7,2013.6,1.97828765]
[1743110862086,2.43998,2013.7,2013.6,2.97170765]
[1743110863092,2.43998,2013.7,2013.6,1.97828765]
[1743110864891,2.43998,2013.7,2013.6,2.97170765]
[1743110866799,2.43998,2013.7,2013.6,1.97828765]
[1743110867996,2.43998,2013.7,2013.6,0.64748765]
[1743110868195,0.99347,2013.5,2013.4,0.00745731]
[1743110868591,2.37477,2013.5,2013.4,0.00745731]
[1743110871506,3.05837,2013.5,2013.4,0.00745731]
[1743110872313,6.24637,2013.5,2013.4,0.00745731]
[1743110873708,9.45417,2013.5,2013.4,0.00745731]